fUST/lending_fUST_20260416
["ID","MTS","AMOUNT","RATE_DAILY","PERIOD"]
[420617887,1776348638975,-408.98358208,8.116e-05,2]
[420617888,1776348638985,-500.0,8.116e-05,2]
[420617889,1776348638995,-500.0,8.116e-05,2]
[420617890,1776348639005,-500.0,8.116e-05,2]
[420617891,1776348639015,-500.0,8.116e-05,2]
[420617892,1776348639024,-500.0,8.116e-05,2]
[420617893,1776348639034,-500.0,8.116e-05,2]
[420617894,1776348639043,-500.0,8.116e-05,2]
[420617895,1776348639052,-281.96938671,8.116e-05,2]
[420617896,1776348639062,-500.0,8.116e-05,2]
[420617897,1776348639071,-500.0,8.116e-05,2]
[420617898,1776348639082,-500.0,8.116e-05,2]
[420617899,1776348639091,-184.15705666,8.116e-05,2]
[420617965,1776348643307,-922.0025,6.066e-05,2]
[420617966,1776348643318,-4077.9975,6.066e-05,2]
[420617967,1776348643327,-315.84294334,8.116e-05,2]
[420617968,1776348643336,-124.18862401,8.116e-05,2]
[420617979,1776348646986,-363.41,8.116e-05,2]
[420617982,1776348647094,-12.40137599,8.116e-05,2]
[420617983,1776348647104,-500.0,8.116e-05,2]
[420617984,1776348647113,-500.0,8.116e-05,2]
[420617985,1776348647123,-500.0,8.116e-05,2]
[420617986,1776348647133,-500.0,8.116e-05,2]
[420617987,1776348647143,-500.0,8.116e-05,2]
[420617988,1776348647153,-500.0,8.116e-05,2]
[420617989,1776348647163,-500.0,8.116e-05,2]
[420617990,1776348647172,-500.0,8.116e-05,2]
[420617991,1776348647182,-500.0,8.116e-05,2]
[420617992,1776348647192,-500.0,8.116e-05,2]
[420617993,1776348647203,-500.0,8.116e-05,2]
[420617994,1776348647212,-500.0,8.116e-05,2]
[420617995,1776348647223,-500.0,8.116e-05,2]
[420617996,1776348647233,-500.0,8.116e-05,2]
[420617997,1776348647243,-500.0,8.116e-05,2]
[420617998,1776348647252,-500.0,8.116e-05,2]
[420617999,1776348647261,-500.0,8.116e-05,2]
[420618000,1776348647271,-500.0,8.116e-05,2]
[420618001,1776348647281,-500.0,8.116e-05,2]
[420618002,1776348647290,-500.0,8.116e-05,2]
[420618003,1776348647299,-500.0,8.116e-05,2]
[420618004,1776348647309,-500.0,8.116e-05,2]
[420618005,1776348647318,-500.0,8.116e-05,2]
[420618006,1776348647330,-500.0,8.116e-05,2]
[420618007,1776348647339,-500.0,8.116e-05,2]
[420618008,1776348647348,-500.0,8.116e-05,2]
[420618009,1776348647358,-500.0,8.116e-05,2]
[420618010,1776348647367,-500.0,8.116e-05,2]
[420618011,1776348647377,-500.0,8.116e-05,2]
[420618012,1776348647386,-500.0,8.116e-05,2]
[420618013,1776348647395,-500.0,8.116e-05,2]
[420618014,1776348647405,-500.0,8.116e-05,2]
[420618015,1776348647414,-500.0,8.116e-05,2]
[420618016,1776348647423,-500.0,8.116e-05,2]
[420618017,1776348647433,-397.05033307,8.116e-05,2]
[420618018,1776348647442,-417.74829094,8.116e-05,2]
[420618122,1776349832554,-5000.0,7.349e-05,2]
[420618123,1776349832564,-525.0,7.423e-05,2]
[420618124,1776349832573,-354.77820345,7.453e-05,2]
[420618125,1776349832583,-3105.13850351,7.482e-05,2]
[420618126,1776349832592,-2485.08329304,7.582e-05,2]
[420618127,1776349832608,-4215.53369565,7.582e-05,2]
[420618128,1776349832618,-938.56630435,7.682e-05,2]
[420618129,1776349832667,-611.25082886,7.682e-05,2]
[420618131,1776349832680,-5893.55785755,7.682e-05,2]
[420618133,1776349832689,-159.786,7.742e-05,2]
[420618135,1776349832698,-7720.63131087,7.782e-05,2]
[420618137,1776349832708,-8186.13299289,7.8e-05,2]
[420618139,1776349832717,-55254.59307157,7.8e-05,2]
[420618374,1776349838886,-207.43950267,7.799e-05,2]
[420618375,1776349838896,-760.18436101,7.799e-05,2]
[420618376,1776349838928,-149.04942152,7.799e-05,2]
[420618377,1776349838937,-909.23378253,7.799e-05,2]
[420618378,1776349838946,-500.0,7.799e-05,2]
[420618379,1776349838956,-909.23378253,7.799e-05,2]
[420618380,1776349838966,-909.23378253,7.799e-05,2]
[420618381,1776349838975,-909.23378253,7.799e-05,2]
[420618382,1776349838984,-909.23378253,7.799e-05,2]
[420618383,1776349838994,-909.23378253,7.799e-05,2]
[420618384,1776349839003,-909.23378253,7.799e-05,2]
[420618385,1776349839013,-909.23378253,7.799e-05,2]
[420618386,1776349839024,-909.23378253,7.799e-05,2]
[420618387,1776349839035,-909.23378253,7.799e-05,2]
[420618388,1776349839045,-909.23378253,7.799e-05,2]
[420618389,1776349839056,-909.23378253,7.799e-05,2]
[420618390,1776349839065,-909.23378253,7.799e-05,2]
[420618391,1776349839074,-909.23378253,7.799e-05,2]
[420618392,1776349839083,-909.23378253,7.799e-05,2]
[420618393,1776349839092,-909.23378253,7.799e-05,2]
[420618394,1776349839101,-648688.74345303,7.8e-05,2]
[420618395,1776349839113,-987215.22419492,7.8e-05,2]
[420618396,1776349839123,-957651.07680694,7.8e-05,2]
[420618397,1776349839134,-189.014003,7.806e-05,2]
[420618398,1776349839144,-1997.44328216,7.9e-05,2]
[420618399,1776349839153,-56365.85638907,8e-05,2]
[420618400,1776349839162,-500.0,8.018e-05,2]
[420618401,1776349839172,-503.17001745,8.018e-05,2]
[420618402,1776349839182,-152.0,8.037e-05,7]
[420618403,1776349839191,-189.014003,8.217e-05,2]
[420618404,1776349839201,-1089.5349,8.219e-05,2]
[420618405,1776349839210,-500.0,8.219e-05,2]
[420618406,1776349839220,-500.0,8.219e-05,2]
[420618407,1776349839229,-960.64,8.219e-05,2]
[420618408,1776349839239,-500.0,8.219e-05,2]
[420618409,1776349839248,-514.8,8.219e-05,2]
[420618410,1776349839257,-1027.71,8.219e-05,2]
[420618411,1776349839266,-1057.91,8.219e-05,2]
[420618412,1776349839276,-500.0,8.219e-05,2]
[420618413,1776349839285,-500.0,8.219e-05,2]
[420618414,1776349839294,-500.0,8.219e-05,2]
[420618415,1776349839303,-500.0,8.219e-05,2]
[420618416,1776349839313,-500.0,8.219e-05,2]
[420618417,1776349839322,-1248.39,8.219e-05,2]
[420618418,1776349839331,-500.0,8.219e-05,2]
[420618419,1776349839340,-500.0,8.219e-05,2]
[420618420,1776349839349,-500.0,8.219e-05,2]
[420618421,1776349839358,-500.0,8.219e-05,2]
[420618422,1776349839368,-402.68090332,8.219e-05,2]
[420618423,1776349839379,-500.0,8.219e-05,2]
[420618424,1776349839388,-500.0,8.219e-05,2]
[420618425,1776349839397,-609.53,8.219e-05,2]
[420618426,1776349839407,-500.0,8.219e-05,2]
[420618427,1776349839416,-542.37,8.219e-05,2]
[420618428,1776349839426,-500.0,8.219e-05,2]
[420618429,1776349839435,-500.0,8.219e-05,2]
[420618430,1776349839444,-526.86,8.219e-05,2]
[420618431,1776349839454,-500.0,8.219e-05,2]
[420618432,1776349839463,-500.0,8.219e-05,2]
[420618433,1776349839472,-500.0,8.219e-05,2]
[420618434,1776349839482,-500.0,8.219e-05,2]
[420618435,1776349839492,-500.0,8.219e-05,2]
[420618436,1776349839501,-500.0,8.219e-05,2]
[420618437,1776349839510,-500.0,8.219e-05,2]
[420618438,1776349839519,-500.0,8.219e-05,2]
[420618439,1776349839529,-500.0,8.219e-05,2]
[420618440,1776349839539,-500.0,8.219e-05,2]
[420618441,1776349839548,-500.0,8.219e-05,2]
[420618442,1776349839557,-500.0,8.219e-05,2]
[420618443,1776349839567,-500.0,8.219e-05,2]
[420618444,1776349839576,-500.0,8.219e-05,2]
[420618445,1776349839586,-500.0,8.219e-05,2]
[420618446,1776349839595,-500.0,8.219e-05,2]
[420618447,1776349839605,-500.0,8.219e-05,2]
[420618448,1776349839614,-575.27,8.219e-05,2]
[420618449,1776349839624,-500.0,8.219e-05,2]
[420618450,1776349839634,-500.0,8.219e-05,2]
[420618451,1776349839644,-500.0,8.219e-05,2]
[420618452,1776349839654,-223.57735767,8.219e-05,2]
[420618453,1776349839665,-500.0,8.219e-05,2]
[420618454,1776349839675,-500.0,8.219e-05,2]
[420618455,1776349839684,-500.0,8.219e-05,2]
[420618456,1776349839694,-500.0,8.219e-05,2]
[420618457,1776349839703,-500.0,8.219e-05,2]
[420618458,1776349839712,-202.98662946,8.219e-05,2]
[420618459,1776349839723,-1000.0,8.219e-05,2]
[420618460,1776349839733,-631.22692452,8.219e-05,2]
[420618461,1776349839743,-200.0,8.219e-05,2]
[420618462,1776349839752,-500.0,8.219e-05,2]
[420618463,1776349839762,-500.0,8.219e-05,2]
[420618464,1776349839771,-500.0,8.219e-05,2]
[420618465,1776349839781,-978.16,8.219e-05,2]
[420618466,1776349839791,-713.5,8.219e-05,2]
[420618467,1776349839800,-500.0,8.219e-05,2]
[420618469,1776349839810,-500.0,8.219e-05,2]
[420618470,1776349839819,-500.0,8.219e-05,2]
[420618472,1776349839828,-500.0,8.219e-05,2]
[420618474,1776349839837,-500.0,8.219e-05,2]
[420618476,1776349839847,-1486.68,8.219e-05,2]
[420618478,1776349839856,-500.0,8.219e-05,2]
[420618479,1776349839865,-500.0,8.219e-05,2]
[420618480,1776349839875,-500.0,8.219e-05,2]
[420618481,1776349839884,-500.0,8.219e-05,2]
[420618482,1776349839893,-500.0,8.219e-05,2]
[420618483,1776349839902,-500.0,8.219e-05,2]
[420618484,1776349839911,-500.0,8.219e-05,2]
[420618485,1776349839920,-500.0,8.219e-05,2]
[420618486,1776349839929,-1686.34,8.219e-05,2]
[420618487,1776349839939,-500.0,8.219e-05,2]
[420618488,1776349839948,-1432.92,8.219e-05,2]
[420618489,1776349839957,-500.0,8.219e-05,2]
[420618490,1776349839966,-511.34274788,8.219e-05,2]
[420618492,1776349839976,-500.0,8.219e-05,2]
[420618493,1776349839985,-500.0,8.219e-05,2]
[420618494,1776349839995,-500.0,8.219e-05,2]
[420618495,1776349840004,-500.0,8.219e-05,2]
[420618496,1776349840014,-500.0,8.219e-05,2]
[420618497,1776349840023,-500.0,8.219e-05,2]
[420618498,1776349840032,-500.0,8.219e-05,2]
[420618499,1776349840042,-1180.49,8.219e-05,2]
[420618500,1776349840051,-500.0,8.219e-05,2]
[420618501,1776349840060,-500.0,8.219e-05,2]
[420618502,1776349840070,-500.0,8.219e-05,2]
[420618503,1776349840079,-1089.22,8.219e-05,2]
[420618504,1776349840089,-500.0,8.219e-05,2]
[420618505,1776349840099,-2144.56,8.219e-05,2]
[420618506,1776349840108,-2230.24,8.219e-05,2]
[420618507,1776349840117,-500.0,8.219e-05,2]
[420618508,1776349840128,-500.0,8.219e-05,2]
[420618509,1776349840138,-423.23780574,8.219e-05,2]
[420618510,1776349840148,-500.0,8.219e-05,2]
[420618511,1776349840157,-500.0,8.219e-05,2]
[420618512,1776349840168,-545.97,8.219e-05,2]
[420618514,1776349840177,-463.32835189,8.219e-05,2]
[420618515,1776349840187,-500.0,8.219e-05,2]
[420618516,1776349840197,-900.42,8.219e-05,2]
[420618517,1776349840207,-815.34,8.219e-05,2]
[420618518,1776349840216,-500.0,8.219e-05,2]
[420618519,1776349840226,-500.0,8.219e-05,2]
[420618520,1776349840235,-802.57,8.219e-05,2]
[420618521,1776349840245,-1203.0,8.219e-05,2]
[420618522,1776349840254,-992.47,8.219e-05,2]
[420618523,1776349840263,-2089.18,8.219e-05,2]
[420618524,1776349840272,-1168.53,8.219e-05,2]
[420618525,1776349840282,-500.0,8.219e-05,2]
[420618526,1776349840476,-500.0,8.219e-05,2]
[420618527,1776349840486,-318.68842063,8.219e-05,2]
[420618528,1776349840495,-500.0,8.219e-05,2]
[420618529,1776349840505,-500.0,8.219e-05,2]
[420618530,1776349840515,-776.67,8.219e-05,2]
[420618531,1776349840524,-652.34,8.219e-05,2]
[420618532,1776349840534,-500.0,8.219e-05,2]
[420618533,1776349840543,-1011.5,8.219e-05,2]
[420618534,1776349840553,-500.0,8.219e-05,2]
[420618535,1776349840562,-554.94,8.219e-05,2]
[420618536,1776349840571,-500.0,8.219e-05,2]
[420618537,1776349840580,-512.14784471,8.219e-05,2]
[420618538,1776349840589,-696.84,8.219e-05,2]
[420618539,1776349840599,-500.0,8.219e-05,2]
[420618540,1776349840608,-5072.71,8.219e-05,2]
[420618541,1776349840617,-4631.84,8.219e-05,2]
[420618542,1776349840627,-4886.26,8.219e-05,2]
[420618543,1776349840637,-500.0,8.219e-05,2]
[420618544,1776349840646,-500.0,8.219e-05,2]
[420618545,1776349840656,-4617.27,8.219e-05,2]
[420618546,1776349840666,-997.19,8.219e-05,2]
[420618547,1776349840675,-500.0,8.219e-05,2]
[420618548,1776349840684,-500.0,8.219e-05,2]
[420618549,1776349840693,-500.0,8.219e-05,2]
[420618550,1776349840703,-614.02,8.219e-05,2]
[420618551,1776349840712,-500.0,8.219e-05,2]
[420618552,1776349840721,-520.65,8.219e-05,2]
[420618553,1776349840730,-777.18,8.219e-05,2]
[420618554,1776349840740,-500.0,8.219e-05,2]
[420618555,1776349840750,-500.0,8.219e-05,2]
[420618556,1776349840760,-500.0,8.219e-05,2]
[420618557,1776349840770,-945.99,8.219e-05,2]
[420618558,1776349840780,-500.0,8.219e-05,2]
[420618559,1776349840789,-192.26900193,8.219e-05,2]
[420618560,1776349840799,-647.84,8.219e-05,2]
[420618561,1776349840809,-1435.11,8.219e-05,2]
[420618562,1776349840819,-500.0,8.219e-05,2]
[420618563,1776349840828,-538.67,8.219e-05,2]
[420618564,1776349840838,-713.21,8.219e-05,2]
[420618565,1776349840847,-1896.62,8.219e-05,2]
[420618566,1776349840857,-500.0,8.219e-05,2]
[420618567,1776349840866,-629.75,8.219e-05,2]
[420618568,1776349840875,-500.0,8.219e-05,2]
[420618569,1776349840884,-500.0,8.219e-05,2]
[420618570,1776349840894,-500.0,8.219e-05,2]
[420618571,1776349840906,-630.18,8.219e-05,2]
[420618572,1776349840915,-890.38,8.219e-05,2]
[420618573,1776349840924,-500.21406749,8.219e-05,2]
[420618574,1776349840933,-500.0,8.219e-05,2]
[420618575,1776349840943,-4667.01,8.219e-05,2]
[420618576,1776349840952,-1909.41,8.219e-05,2]
[420618577,1776349840962,-486.26699749,8.219e-05,2]
[420618578,1776349840971,-500.0,8.219e-05,2]
[420618580,1776349840981,-500.0,8.219e-05,2]
[420618582,1776349840990,-500.0,8.219e-05,2]
[420618584,1776349841000,-502.6,8.219e-05,2]
[420618585,1776349841009,-500.0,8.219e-05,2]
[420618587,1776349841018,-500.0,8.219e-05,2]
[420618589,1776349841027,-1820.83,8.219e-05,2]
[420618591,1776349841037,-500.0,8.219e-05,2]
[420618592,1776349841046,-1348.39,8.219e-05,2]
[420618594,1776349841055,-3132.46,8.219e-05,2]
[420618595,1776349841064,-23049.0,8.219e-05,2]
[420618596,1776349841073,-623.2,8.219e-05,2]
[420618597,1776349841082,-598.51374422,8.219e-05,2]
[420618598,1776349841090,-500.0,8.219e-05,2]
[420618599,1776349841099,-500.0,8.219e-05,2]
[420618600,1776349841109,-4548.28,8.219e-05,2]
[420618601,1776349841118,-500.0,8.219e-05,2]
[420618602,1776349841129,-26412.78,8.219e-05,2]
[420618603,1776349841139,-500.0,8.219e-05,2]
[420618604,1776349841148,-1412.28,8.219e-05,2]
[420618605,1776349841158,-500.0,8.219e-05,2]
[420618606,1776349841168,-1581.06,8.219e-05,2]
[420618607,1776349841178,-5627.94,8.219e-05,2]
[420618608,1776349841189,-1679.67,8.219e-05,2]
[420618609,1776349841198,-500.0,8.219e-05,2]
[420618610,1776349841208,-500.0,8.219e-05,2]
[420618611,1776349841218,-500.0,8.219e-05,2]
[420618612,1776349841228,-500.0,8.219e-05,2]
[420618613,1776349841238,-16472.74,8.219e-05,2]
[420618614,1776349841250,-1188.59,8.219e-05,2]
[420618615,1776349841261,-500.0,8.219e-05,2]
[420618616,1776349841272,-500.0,8.219e-05,2]
[420618617,1776349841282,-500.0,8.219e-05,2]
[420618618,1776349841291,-414.62925137,8.219e-05,2]
[420618619,1776349841301,-500.0,8.219e-05,2]
[420618621,1776349841310,-500.0,8.219e-05,2]
[420618622,1776349841319,-500.0,8.219e-05,2]
[420618624,1776349841329,-890.45,8.219e-05,2]
[420618625,1776349841339,-1576.7,8.219e-05,2]
[420618626,1776349841350,-717.51,8.219e-05,2]
[420618627,1776349841359,-1486.49,8.219e-05,2]
[420618628,1776349841368,-1196.33,8.219e-05,2]
[420618629,1776349841378,-460.30605325,8.219e-05,2]
[420618630,1776349841387,-7846.61,8.219e-05,2]
[420618631,1776349841397,-6892.75,8.219e-05,2]
[420618632,1776349841407,-4451.01,8.219e-05,2]
[420618633,1776349841416,-500.0,8.219e-05,2]
[420618634,1776349841426,-906.08,8.219e-05,2]
[420618635,1776349841436,-500.0,8.219e-05,2]
[420618636,1776349841445,-1034.13,8.219e-05,2]
[420618637,1776349841455,-500.0,8.219e-05,2]
[420618638,1776349841465,-384.59552133,8.219e-05,2]
[420618639,1776349841474,-500.0,8.219e-05,2]
[420618640,1776349841484,-500.0,8.219e-05,2]
[420618641,1776349841494,-500.0,8.219e-05,2]
[420618642,1776349841504,-300.0,8.277e-05,2]
[420618643,1776349841515,-300.0,8.277e-05,2]
[420618644,1776349841524,-300.0,8.277e-05,2]
[420618645,1776349841533,-300.0,8.277e-05,2]
[420618646,1776349841543,-300.0,8.277e-05,2]
[420618647,1776349841552,-300.0,8.277e-05,2]
[420618648,1776349841563,-300.0,8.277e-05,2]
[420618649,1776349841573,-300.0,8.277e-05,2]
[420618650,1776349841583,-300.0,8.277e-05,2]
[420618651,1776349841593,-300.0,8.277e-05,2]
[420618652,1776349841603,-300.0,8.277e-05,2]
[420618653,1776349841612,-300.0,8.277e-05,2]
[420618654,1776349841623,-300.0,8.277e-05,2]
[420618655,1776349841632,-300.0,8.277e-05,2]
[420618656,1776349841642,-300.0,8.277e-05,2]
[420618657,1776349841651,-600.0,8.277e-05,2]
[420618658,1776349841660,-1089.5349,8.493e-05,2]
[420618659,1776349841670,-500.0,8.493e-05,2]
[420618660,1776349841679,-960.64,8.493e-05,2]
[420618661,1776349841691,-514.8,8.493e-05,2]
[420618662,1776349841700,-1027.71,8.493e-05,2]
[420618663,1776349841709,-1057.91,8.493e-05,2]
[420618664,1776349841718,-500.0,8.493e-05,2]
[420618665,1776349841728,-500.0,8.493e-05,2]
[420618666,1776349841738,-500.0,8.493e-05,2]
[420618667,1776349841748,-1248.39,8.493e-05,2]
[420618668,1776349841757,-500.0,8.493e-05,2]
[420618669,1776349841768,-500.0,8.493e-05,2]
[420618670,1776349841778,-500.0,8.493e-05,2]
[420618671,1776349841787,-609.53,8.493e-05,2]
[420618672,1776349841797,-500.0,8.493e-05,2]
[420618673,1776349841806,-542.37,8.493e-05,2]
[420618674,1776349841816,-500.0,8.493e-05,2]
[420618675,1776349841825,-500.0,8.493e-05,2]
[420618676,1776349841834,-526.86,8.493e-05,2]
[420618677,1776349841843,-500.0,8.493e-05,2]
[420618678,1776349841852,-500.0,8.493e-05,2]
[420618679,1776349841862,-500.0,8.493e-05,2]
[420618680,1776349841871,-500.0,8.493e-05,2]
[420618681,1776349841880,-500.0,8.493e-05,2]
[420618682,1776349841890,-500.0,8.493e-05,2]
[420618683,1776349841900,-500.0,8.493e-05,2]
[420618684,1776349841909,-500.0,8.493e-05,2]
[420618685,1776349841919,-500.0,8.493e-05,2]
[420618686,1776349841928,-500.0,8.493e-05,2]
[420618687,1776349841937,-500.0,8.493e-05,2]
[420618688,1776349841946,-500.0,8.493e-05,2]
[420618689,1776349841955,-575.27,8.493e-05,2]
[420618690,1776349841965,-500.0,8.493e-05,2]
[420618691,1776349841975,-500.0,8.493e-05,2]
[420618692,1776349841984,-500.0,8.493e-05,2]
[420618693,1776349841995,-500.0,8.493e-05,2]
[420618694,1776349842004,-500.0,8.493e-05,2]
[420618695,1776349842013,-500.0,8.493e-05,2]
[420618696,1776349842022,-500.0,8.493e-05,2]
[420618697,1776349842032,-1000.0,8.493e-05,2]
[420618698,1776349842041,-500.0,8.493e-05,2]
[420618699,1776349842050,-500.0,8.493e-05,2]
[420618700,1776349842059,-500.0,8.493e-05,2]
[420618701,1776349842069,-978.16,8.493e-05,2]
[420618702,1776349842078,-713.5,8.493e-05,2]
[420618703,1776349842088,-500.0,8.493e-05,2]
[420618704,1776349842097,-500.0,8.493e-05,2]
[420618705,1776349842107,-500.0,8.493e-05,2]
[420618706,1776349842117,-500.0,8.493e-05,2]
[420618707,1776349842127,-500.0,8.493e-05,2]
[420618708,1776349842136,-1486.68,8.493e-05,2]
[420618709,1776349842145,-510.35689493,8.493e-05,2]
[420618710,1776349842154,-500.0,8.493e-05,2]
[420618711,1776349842163,-512.2358804,8.493e-05,2]
[420618712,1776349842173,-500.0,8.493e-05,2]
[420618713,1776349842183,-1686.34,8.493e-05,2]
[420618714,1776349842192,-500.0,8.493e-05,2]
[420618715,1776349842201,-1432.92,8.493e-05,2]
[420618716,1776349842210,-500.0,8.493e-05,2]
[420618717,1776349842220,-500.0,8.493e-05,2]
[420618718,1776349842230,-292.60368088,8.493e-05,2]
[420618719,1776349842239,-500.0,8.493e-05,2]
[420618720,1776349842248,-1180.49,8.493e-05,2]
[420618721,1776349842258,-375.15644912,8.493e-05,2]
[420618722,1776349842268,-500.0,8.493e-05,2]
[420618723,1776349842279,-1089.22,8.493e-05,2]
[420618724,1776349842288,-500.0,8.493e-05,2]
[420618725,1776349842299,-2144.56,8.493e-05,2]
[420618726,1776349842308,-2230.24,8.493e-05,2]
[420618727,1776349842318,-500.0,8.493e-05,2]
[420618728,1776349842327,-500.0,8.493e-05,2]
[420618729,1776349842336,-545.97,8.493e-05,2]
[420618730,1776349842345,-900.42,8.493e-05,2]
[420618731,1776349842354,-815.34,8.493e-05,2]
[420618732,1776349842364,-500.0,8.493e-05,2]
[420618733,1776349842375,-500.0,8.493e-05,2]
[420618734,1776349842383,-802.57,8.493e-05,2]
[420618735,1776349842392,-1203.0,8.493e-05,2]
[420618736,1776349842401,-992.47,8.493e-05,2]
[420618737,1776349842411,-2089.18,8.493e-05,2]
[420618738,1776349842420,-1168.53,8.493e-05,2]
[420618739,1776349842429,-626.09654212,8.493e-05,2]
[420618740,1776349842439,-776.67,8.493e-05,2]
[420618741,1776349842448,-652.34,8.493e-05,2]
[420618742,1776349842457,-500.0,8.493e-05,2]
[420618743,1776349842466,-1011.5,8.493e-05,2]
[420618744,1776349842475,-500.0,8.493e-05,2]
[420618745,1776349842484,-500.0,8.493e-05,2]
[420618746,1776349842493,-696.84,8.493e-05,2]
[420618747,1776349842502,-500.0,8.493e-05,2]
[420618748,1776349842511,-5072.71,8.493e-05,2]
[420618749,1776349842520,-4631.84,8.493e-05,2]
[420618750,1776349842530,-4886.26,8.493e-05,2]
[420618751,1776349842539,-4617.27,8.493e-05,2]
[420618752,1776349842548,-997.19,8.493e-05,2]
[420618753,1776349842557,-500.0,8.493e-05,2]
[420618754,1776349842568,-500.0,8.493e-05,2]
[420618755,1776349842577,-614.02,8.493e-05,2]
[420618756,1776349842586,-520.65,8.493e-05,2]
[420618757,1776349842595,-777.18,8.493e-05,2]
[420618758,1776349842604,-500.0,8.493e-05,2]
[420618759,1776349842614,-500.0,8.493e-05,2]
[420618760,1776349842623,-945.99,8.493e-05,2]
[420618761,1776349842632,-500.0,8.493e-05,2]
[420618762,1776349842642,-1435.11,8.493e-05,2]
[420618763,1776349842651,-401.52977493,8.493e-05,2]
[420618764,1776349842660,-538.67,8.493e-05,2]
[420618765,1776349842670,-647.84,8.493e-05,2]
[420618766,1776349842679,-713.21,8.493e-05,2]
[420618767,1776349842689,-1896.62,8.493e-05,2]
[420618768,1776349842698,-500.0,8.493e-05,2]
[420618769,1776349842708,-629.75,8.493e-05,2]
[420618770,1776349842718,-500.0,8.493e-05,2]
[420618771,1776349842728,-500.0,8.493e-05,2]
[420618772,1776349842738,-500.0,8.493e-05,2]
[420618773,1776349842748,-630.18,8.493e-05,2]
[420618774,1776349842758,-890.38,8.493e-05,2]
[420618775,1776349842768,-500.0,8.493e-05,2]
[420618776,1776349842778,-4667.01,8.493e-05,2]
[420618777,1776349842788,-1909.41,8.493e-05,2]
[420618778,1776349842798,-500.0,8.493e-05,2]
[420618779,1776349842808,-500.0,8.493e-05,2]
[420618781,1776349842818,-502.6,8.493e-05,2]
[420618782,1776349842827,-1820.83,8.493e-05,2]
[420618784,1776349842836,-500.0,8.493e-05,2]
[420618786,1776349842846,-1348.39,8.493e-05,2]
[420618788,1776349842855,-3132.46,8.493e-05,2]
[420618789,1776349842864,-23049.0,8.493e-05,2]
[420618791,1776349842874,-623.2,8.493e-05,2]
[420618792,1776349842884,-159.32,8.493e-05,2]
[420618794,1776349842894,-500.0,8.493e-05,2]
[420618797,1776349842903,-500.0,8.493e-05,2]
[420618800,1776349842912,-4548.28,8.493e-05,2]
[420618802,1776349842921,-500.0,8.493e-05,2]
[420618804,1776349842931,-26412.78,8.493e-05,2]
[420618807,1776349842940,-1412.28,8.493e-05,2]
[420618810,1776349842950,-1581.06,8.493e-05,2]
[420618813,1776349842959,-5627.94,8.493e-05,2]
[420618816,1776349842968,-1679.67,8.493e-05,2]
[420618818,1776349842978,-500.0,8.493e-05,2]
[420618821,1776349842987,-500.0,8.493e-05,2]
[420618823,1776349842996,-16472.74,8.493e-05,2]
[420618824,1776349843006,-1188.59,8.493e-05,2]
[420618826,1776349843015,-500.0,8.493e-05,2]
[420618827,1776349843024,-500.0,8.493e-05,2]
[420618828,1776349843033,-500.0,8.493e-05,2]
[420618829,1776349843043,-890.45,8.493e-05,2]
[420618830,1776349843052,-1576.7,8.493e-05,2]
[420618831,1776349843061,-717.51,8.493e-05,2]
[420618832,1776349843070,-1486.49,8.493e-05,2]
[420618834,1776349843079,-1196.33,8.493e-05,2]
[420618835,1776349843089,-7846.61,8.493e-05,2]
[420618836,1776349843099,-6892.75,8.493e-05,2]
[420618837,1776349843114,-4451.01,8.493e-05,2]
[420618838,1776349843123,-500.0,8.493e-05,2]
[420618839,1776349843134,-906.08,8.493e-05,2]
[420618840,1776349843143,-500.0,8.493e-05,2]
[420618841,1776349843153,-1034.13,8.493e-05,2]
[420618842,1776349843161,-500.0,8.493e-05,2]
[420618843,1776349843170,-500.0,8.493e-05,2]
[420618844,1776349843180,-350.0009262,8.5e-05,2]
[420618846,1776349843189,-2208.0,8.573e-05,2]
[420618848,1776349843198,-1408.0,8.573e-05,2]
[420618850,1776349843207,-645.0,8.573e-05,2]